bitfinex-derivatives/quotes_BTCF0:USTF0_20250318
["timestamp","ask_amount","ask_price","bid_price","bid_amount"]
[1742268719796,0.2015843,83005.0,83004.0,0.21192066]
[1742268720308,0.2015843,83005.0,83004.0,0.12838066]
[1742268720503,0.2015843,83005.0,83004.0,0.12166636]
[1742268721202,0.2015843,83005.0,83004.0,0.16036636]
[1742268721403,0.2035843,83005.0,83004.0,0.20216636]
[1742268721601,0.2065843,83005.0,83004.0,0.03988066]
[1742268722000,0.2065843,83005.0,83004.0,0.00018066]
[1742268723904,0.2075843,83005.0,83004.0,0.00018066]
[1742268724813,0.2075843,83005.0,83004.0,0.12066636]
[1742268725002,0.1677843,83005.0,83004.0,0.12066636]
[1742268725401,0.1677843,83005.0,83004.0,0.04278066]
[1742268726311,0.1677843,83005.0,83004.0,0.08378066]
[1742268727710,0.1677843,83005.0,83004.0,0.00018066]
[1742268728011,0.1677843,83005.0,83004.0,0.12066636]
[1742268728508,0.1677843,83005.0,83004.0,0.20396636]
[1742268731413,0.0473,83005.0,83004.0,0.20396636]
[1742268732114,0.006,83005.0,83004.0,0.20396636]
[1742268732614,0.0417,83012.0,83011.0,0.1204755]
[1742268732819,0.0416,83019.0,83018.0,0.1204654]
[1742268733012,0.1365104,83026.0,83025.0,0.1204552]
[1742268733219,0.1365104,83026.0,83025.0,0.2484152]
[1742268733611,0.1365104,83026.0,83025.0,0.26973326]
[1742268734920,0.1415104,83026.0,83025.0,0.26973326]
[1742268735515,0.1465104,83026.0,83025.0,0.26973326]
[1742268736024,0.1465104,83026.0,83025.0,0.27875125]
[1742268737115,0.01,83026.0,83025.0,0.27875125]
[1742268737310,0.00018066,83034.0,83033.0,0.1204436]
[1742268737516,0.00018066,83034.0,83033.0,0.5282036]
[1742268737716,0.0827,83051.0,83038.0,0.1204364]
[1742268737913,0.0827,83051.0,83038.0,0.3604364]
[1742268738326,0.043,83051.0,83050.0,0.120419]
[1742268738527,0.3608,83053.0,83052.0,0.1204161]
[1742268739222,0.3608,83053.0,83052.0,0.3904161]
[1742268740119,0.3608,83053.0,83052.0,0.1204161]
[1742268740313,0.3608,83053.0,83051.0,0.0423]
[1742268740519,0.2057161,83052.0,83051.0,0.0423]
[1742268740719,0.2057161,83052.0,83051.0,0.17018]
[1742268740917,0.2449161,83052.0,83051.0,0.17018]
[1742268741927,0.2449161,83052.0,83051.0,0.2905975]
[1742268742320,0.2459161,83052.0,83051.0,0.2905975]
[1742268742521,0.2479161,83052.0,83051.0,0.2905975]
[1742268742718,0.0458,83052.0,83051.0,0.2905975]
[1742268743235,0.2064161,83052.0,83051.0,0.2905975]
[1742268743522,0.2064161,83052.0,83051.0,0.17018]
[1742268744017,0.1204248,83046.0,83045.0,0.00068]
[1742268744214,0.4812248,83046.0,83045.0,0.00068]
[1742268744419,0.1204291,83043.0,83042.0,0.00018066]
[1742268744921,0.1204291,83043.0,83042.0,0.12061126]
[1742268745122,0.1204291,83043.0,83042.0,0.00018066]
[1742268745324,0.1194291,83043.0,83042.0,0.00018066]
[1742268746029,0.1194291,83043.0,83042.0,0.00118066]
[1742268747425,0.2467891,83043.0,83042.0,0.00218066]
[1742268747624,0.120448,83031.0,83030.0,0.1204478]
[1742268747928,0.120448,83031.0,83030.0,0.1598478]
[1742268747929,0.481248,83031.0,83030.0,0.1598478]
[1742268748123,0.564248,83031.0,83030.0,0.1598478]
[1742268748320,0.4438,83031.0,83017.0,0.36961431]
[1742268748520,0.4438,83031.0,83007.0,0.28738306]
[1742268748521,0.1204712,83015.0,83014.0,0.1807053]
[1742268748727,0.2409296,83021.0,83020.0,0.1204625]
[1742268748933,0.1204683,83017.0,83016.0,0.1204672]
[1742268749123,0.1204683,83017.0,83016.0,0.1619672]
[1742268749527,0.12423416,83017.0,83016.0,0.2038672]
[1742268749726,0.12423416,83017.0,83016.0,0.20600272]
[1742268749931,0.48503416,83017.0,83016.0,0.20600272]
[1742268750427,0.36456586,83017.0,83016.0,0.20600272]
[1742268750622,0.48503266,83017.0,83016.0,0.20600272]
[1742268751223,0.4812668,83017.0,83016.0,0.20600272]
[1742268751718,0.4842668,83017.0,83016.0,0.20600272]
[1742268752429,0.3678,83017.0,83016.0,0.20600272]
[1742268752825,0.4872668,83017.0,83016.0,0.20600272]
[1742268757434,0.49103269,83017.0,83016.0,0.20600272]
[1742268759037,0.4872668,83017.0,83016.0,0.20600272]
[1742268760138,0.5286668,83017.0,83016.0,0.20600272]
[1742268762630,0.006,83017.0,83016.0,0.20600272]
[1742268763735,0.006,83017.0,83016.0,0.56680272]
[1742268763935,0.21335446,83040.0,83021.0,0.0602298]
[1742268764142,0.21451446,83040.0,83031.0,0.1204465]
[1742268764331,0.21335446,83040.0,83031.0,0.2472865]
[1742268764834,0.21335446,83040.0,83039.0,0.1204349]
[1742268765034,0.21335446,83040.0,83039.0,0.3472349]
[1742268765637,0.21335446,83040.0,83039.0,0.4281349]
[1742268765835,0.21335446,83040.0,83039.0,0.43027042]
[1742268766034,0.21835446,83040.0,83039.0,0.43027042]
[1742268766238,0.22335446,83040.0,83039.0,0.4524671]
[1742268767932,0.21835446,83040.0,83039.0,0.8132671]
[1742268768544,0.06935889,83040.0,83039.0,0.8132671]
[1742268769138,0.003,83040.0,83039.0,0.8122671]
[1742268769443,0.003,83040.0,83039.0,1.2222671]
[1742268770338,0.10677767,83047.0,83046.0,0.1204248]
[1742268770538,0.10677767,83047.0,83046.0,0.5273048]
[1742268770948,0.10677767,83047.0,83046.0,0.52944032]
[1742268771248,0.10677767,83047.0,83046.0,0.48666032]
[1742268771447,0.22720097,83047.0,83046.0,0.33350032]
[1742268771647,0.30810097,83047.0,83046.0,0.33350032]
[1742268772347,0.30810097,83047.0,83046.0,0.33334032]
[1742268772949,0.2013233,83047.0,83046.0,0.33334032]
[1742268773538,0.1617233,83047.0,83046.0,0.33334032]
[1742268773952,0.0433,83047.0,83046.0,0.33334032]
[1742268774640,0.004,83047.0,83046.0,0.33334032]
[1742268775147,0.004,83047.0,83046.0,0.61334032]
[1742268776142,0.004,83047.0,83046.0,0.33334032]
[1742268776350,0.1650233,83047.0,83046.0,0.33334032]
[1742268776745,0.2091233,83047.0,83046.0,0.16436032]
[1742268777046,0.2091233,83047.0,83046.0,0.00213552]
[1742268777254,0.21288812,83047.0,83046.0,0.00213552]
[1742268778247,0.21288812,83047.0,83046.0,0.12256032]
[1742268778549,0.22366005,83047.0,83046.0,0.00213552]
[1742268778749,0.22366005,83047.0,83046.0,0.12256032]
[1742268779053,0.22366005,83047.0,83046.0,0.00213552]
[1742268780149,0.10323675,83047.0,83046.0,0.12256032]
[1742268780343,0.21288812,83047.0,83046.0,0.12256032]
[1742268780545,0.09246482,83047.0,83046.0,0.20606032]
[1742268780756,0.21288812,83047.0,83046.0,0.20606032]
[1742268781148,0.21288812,83047.0,83046.0,0.16556032]
[1742268782253,0.21288812,83047.0,83046.0,0.00213552]
[1742268782450,0.22368,83047.0,83046.0,0.00213552]
[1742268782649,0.22368,83047.0,83046.0,0.12256032]
[1742268783347,0.21288812,83047.0,83046.0,0.12256032]
[1742268783647,0.04836482,83047.0,83046.0,0.24872032]
[1742268784051,0.16878812,83047.0,83046.0,0.33312032]
[1742268784255,0.04836482,83047.0,83046.0,0.33312032]
[1742268784557,0.05915692,83047.0,83046.0,0.33312032]
[1742268785348,0.12718812,83047.0,83046.0,0.33312032]
[1742268785753,0.12618812,83047.0,83046.0,0.33312032]
[1742268786149,0.00576482,83047.0,83046.0,0.33312032]
[1742268786557,0.00576482,83047.0,83046.0,0.59312032]
[1742268787651,0.00476482,83047.0,83046.0,0.59312032]
[1742268788553,0.001,83047.0,83046.0,0.95392032]
[1742268789243,0.001,83047.0,83046.0,0.97392032]
[1742268789449,0.10677563,83050.0,83049.0,0.1204204]
[1742268789647,0.10677563,83050.0,83049.0,1.6047404]
[1742268789855,0.10677563,83050.0,83049.0,1.60687592]
[1742268790069,0.04959463,83050.0,83049.0,1.60687592]
[1742268790760,0.05059463,83050.0,83049.0,1.60687592]
[1742268790961,0.05159463,83050.0,83049.0,1.60687592]
[1742268791159,0.05159463,83050.0,83049.0,1.73339592]
[1742268791664,0.05159463,83050.0,83049.0,1.88339592]
[1742268791849,0.00943421,83050.0,83049.0,1.88339592]
[1742268792049,0.00018066,83058.0,83049.0,1.76297552]
[1742268792249,0.08578053,83060.0,83059.0,0.1204059]
[1742268792464,0.07195292,83060.0,83059.0,0.8267659]
[1742268792651,0.0297925,83060.0,83059.0,0.8267659]
[1742268793152,0.0297925,83060.0,83059.0,0.91600142]
[1742268793547,0.00018066,83068.0,83067.0,0.1203943]
[1742268793752,0.00018066,83068.0,83067.0,0.5166343]
[1742268793954,0.00018066,83068.0,83067.0,0.51876982]
[1742268794949,0.04148066,83068.0,83067.0,0.51876982]
[1742268795154,0.04148066,83068.0,83067.0,0.52801053]
[1742268795861,0.00118066,83068.0,83067.0,0.54744595]
[1742268796872,0.12157356,83068.0,83067.0,0.27744595]
[1742268797254,0.00118066,83068.0,83067.0,0.27744595]
[1742268797659,0.04398066,83068.0,83067.0,0.27744595]
[1742268797858,0.08608066,83068.0,83067.0,0.27744595]
[1742268798970,0.04398066,83068.0,83067.0,0.27744595]
[1742268799964,0.04398066,83068.0,83067.0,0.53744595]
[1742268801367,0.04398066,83068.0,83067.0,0.39177053]
[1742268801568,0.52517356,83068.0,83067.0,0.00213552]
[1742268801761,0.52517356,83068.0,83067.0,0.12252982]
[1742268801956,0.52517356,83068.0,83067.0,0.00213552]
[1742268802164,0.52517356,83068.0,83067.0,0.12252982]
[1742268802667,0.1204045,83060.0,83049.0,1.0353798]
[1742268802964,0.1204219,83050.0,83049.0,0.1806294]
[1742268803157,0.4812219,83050.0,83049.0,0.1806294]
[1742268803352,0.1204219,83048.0,83047.0,0.0602093]
[1742268803554,0.1204277,83044.0,83043.0,0.22526805]
[1742268803967,0.1204277,83044.0,83043.0,0.21607298]
[1742268804466,0.1617277,83044.0,83043.0,0.33650208]
[1742268804863,0.1627277,83044.0,83043.0,0.33650208]
[1742268805660,0.1617277,83044.0,83043.0,0.33650208]
[1742268805865,0.1627277,83044.0,83043.0,0.33650208]
[1742268806064,0.1627277,83044.0,83043.0,0.1204291]
[1742268806260,0.1637277,83044.0,83043.0,0.1204291]
[1742268807062,0.1806494,83042.0,83041.0,0.1204313]
[1742268807262,0.5414494,83042.0,83041.0,0.1204313]
[1742268807460,0.5829494,83042.0,83041.0,0.1204313]
[1742268807771,0.4625159,83042.0,83041.0,0.1204313]
[1742268808464,0.4023,83042.0,83041.0,0.1204313]
[1742268808769,0.5227306,83042.0,83041.0,0.1204313]
[1742268809165,0.5237306,83042.0,83041.0,0.1204313]
[1742268809474,0.5247306,83042.0,83041.0,0.1204313]
[1742268810469,0.4043,83042.0,83041.0,0.1204313]
[1742268810971,0.5247306,83042.0,83041.0,0.1204313]
[1742268811171,0.5247306,83042.0,83041.0,0.2023313]
[1742268811569,0.5247306,83042.0,83041.0,0.0398]
[1742268811768,0.5247306,83042.0,83041.0,0.160232]
[1742268812069,0.4043,83042.0,83041.0,0.360232]
[1742268812374,0.4832306,83042.0,83041.0,0.402732]
[1742268812973,0.3628,83042.0,83041.0,0.402732]
[1742268813174,0.4832306,83042.0,83041.0,0.402732]
[1742268814067,0.4822306,83042.0,83041.0,0.402732]
[1742268815569,0.3618,83042.0,83041.0,0.402732]
[1742268815762,0.0415,83049.0,83041.0,0.3226]
[1742268815962,0.1204393,83036.0,83035.0,0.00018066]
[1742268816367,0.1204393,83036.0,83017.0,0.0602333]
[1742268816368,0.21022,83036.0,83017.0,0.0602333]
[1742268816562,0.1204668,83017.0,83013.0,0.00068]
[1742268816763,0.0602377,83011.0,83007.0,0.28738306]
[1742268817078,0.1204799,83008.0,83007.0,0.28738306]
[1742268817681,0.1194799,83008.0,83007.0,0.40786446]
[1742268818171,0.0409,83010.0,83009.0,0.1204785]
[1742268818368,0.161377,83010.0,83009.0,0.1204785]
[1742268818767,0.1204799,83008.0,83007.0,0.06224]
[1742268819077,0.1204799,83008.0,83007.0,0.06424]
[1742268819578,0.1204799,83008.0,83007.0,0.004]
[1742268819872,0.1204799,83008.0,82999.0,0.06042646]
[1742268819873,0.1204915,83001.0,82999.0,0.12067296]
[1742268820174,0.5237915,83000.0,82999.0,0.00018066]
[1742268820568,0.5217915,83000.0,82999.0,0.00018066]
[1742268821479,0.5217915,83000.0,82999.0,0.00518066]
[1742268822174,0.5217915,83000.0,82999.0,0.00418066]
[1742268822581,0.1205017,82993.0,82992.0,0.0401]
[1742268822875,0.4773017,82993.0,82992.0,0.1606031]
[1742268823576,0.4753017,82993.0,82992.0,0.1606031]
[1742268824073,0.4753017,82993.0,82992.0,0.2027031]
[1742268824272,0.4753017,82993.0,82992.0,0.2067031]
[1742268824568,0.4733017,82993.0,82992.0,0.2067031]
[1742268825376,0.4733017,82993.0,82992.0,0.2107031]
[1742268827376,0.1807505,82996.0,82995.0,0.1204988]
[1742268828085,0.0602493,82996.0,82995.0,0.1204988]
[1742268829389,0.0602493,82996.0,82995.0,0.1234988]
[1742268829783,0.0602493,82996.0,82995.0,0.1264988]
[1742268834891,0.3608,83007.0,83002.0,0.0602442]
[1742268835090,0.120483,83007.0,83006.0,0.1204828]
[1742268836896,0.202183,83007.0,83006.0,0.1204828]
[1742268838482,0.1204857,83005.0,83004.0,0.1204852]
[1742268838682,0.1204872,83003.0,83002.0,0.001]
[1742268838997,0.1204886,83002.0,83001.0,0.1204895]
[1742268839187,0.5220886,83002.0,83001.0,0.1204895]
[1742268839985,0.4812886,83002.0,83001.0,0.1204895]
[1742268840192,0.4812886,83002.0,83001.0,0.2879095]
[1742268840696,0.0417,83008.0,83006.0,0.1204828]
[1742268840901,0.4812799,83009.0,83008.0,0.1204799]
[1742268841500,0.3608,83009.0,83008.0,0.3300799]
[1742268842703,0.3608,83009.0,83008.0,0.5700799]
[1742268843797,0.14236191,83015.0,83014.0,0.1204712]
[1742268843993,0.14236191,83015.0,83014.0,0.3604712]
[1742268844599,0.14236191,83015.0,83014.0,0.4425712]
[1742268844795,6e-08,83016.0,83015.0,0.1204697]
[1742268844995,6e-08,83016.0,83015.0,0.7750297]
[1742268845194,6e-08,83016.0,83015.0,0.8171297]
[1742268846101,0.00200006,83016.0,83015.0,0.5371297]
[1742268846696,0.00400006,83016.0,83015.0,0.5371297]
[1742268848000,6e-08,83016.0,83015.0,0.4555697]
[1742268848207,0.1423433,83024.0,83015.0,0.4555697]
[1742268848208,0.09207246,83024.0,83023.0,0.1204581]
[1742268848407,0.09207246,83024.0,83023.0,1.1255381]
[1742268848408,0.03885046,83024.0,83023.0,1.1255381]
[1742268848607,6e-08,83024.0,83023.0,1.1455381]
[1742268848806,0.0836,83045.0,83026.0,0.0602266]
[1742268848807,0.0418,83045.0,83026.0,0.0602266]
[1742268849003,0.0418,83045.0,83037.0,0.1204378]
[1742268849207,0.00018066,83040.0,83037.0,0.5047978]
[1742268849405,0.00018066,83040.0,83039.0,0.1204349]
[1742268849604,0.00018066,83040.0,83039.0,0.3704349]
[1742268850309,0.00018066,83040.0,83039.0,0.6104349]
[1742268850503,0.00018066,83040.0,83039.0,0.3704349]
[1742268852005,0.00518066,83040.0,83039.0,0.3714349]
[1742268852410,0.01018066,83040.0,83039.0,0.3714349]
[1742268852713,0.01018066,83040.0,83039.0,0.38060667]
[1742268861136,0.49141416,83040.0,83039.0,0.12468]
[1742268861439,0.37098066,83040.0,83039.0,0.2451149]
[1742268861634,0.01018066,83040.0,83039.0,0.2451149]
[1742268861940,0.09408066,83040.0,83039.0,0.2451149]
[1742268862134,0.09408066,83040.0,83039.0,0.2855149]
[1742268862347,0.21451416,83040.0,83039.0,0.2855149]
[1742268862636,0.21451416,83040.0,83039.0,0.5355149]
[1742268862637,0.09408066,83040.0,83039.0,0.5355149]
[1742268863026,0.09408066,83040.0,83039.0,0.5753149]
[1742268863239,0.01018066,83040.0,83039.0,0.5753149]
[1742268864236,0.01018066,83040.0,83039.0,0.9361149]
[1742268865735,0.01018066,83040.0,83039.0,0.5753149]
[1742268866044,0.01018066,83040.0,83039.0,0.2853549]
[1742268866242,0.13061416,83040.0,83039.0,0.1214349]
[1742268866541,0.13061416,83040.0,83039.0,0.2449549]
[1742268866740,0.57851416,83040.0,83039.0,0.2449549]
[1742268869531,0.45808066,83040.0,83039.0,0.2449549]
[1742268870143,0.45808066,83040.0,83039.0,0.4749549]
[1742268870531,0.45808066,83040.0,83039.0,0.5163549]
[1742268870731,0.45808066,83040.0,83039.0,0.5606549]
[1742268871342,0.09728066,83040.0,83039.0,0.5606549]
[1742268871535,0.05218066,83040.0,83039.0,0.5606549]
[1742268871844,0.05218066,83040.0,83039.0,0.57455272]
[1742268871845,0.01018066,83040.0,83039.0,0.57455272]
[1742268872539,0.01018066,83040.0,83039.0,0.80455272]
[1742268872740,0.01018066,83040.0,83039.0,0.57455272]
[1742268873337,0.01018066,83040.0,83039.0,0.98615272]
[1742268873743,0.00518066,83040.0,83039.0,0.94101272]
[1742268874049,0.00518066,83040.0,83039.0,0.94201272]
[1742268874354,0.00518066,83040.0,83039.0,0.94217272]
[1742268874642,0.00018066,83040.0,83039.0,0.94317272]
[1742268875450,0.00018066,83040.0,83039.0,0.94217272]
[1742268875943,0.00018066,83040.0,83039.0,1.30297272]
[1742268876148,0.00018066,83040.0,83039.0,0.94217272]
[1742268876945,0.00018066,83040.0,83039.0,0.94117272]
[1742268877145,0.00118066,83040.0,83039.0,0.94117272]
[1742268877647,0.00218066,83040.0,83039.0,0.94117272]
[1742268878038,0.00118066,83040.0,83039.0,0.94117272]
[1742268878243,0.00218066,83040.0,83039.0,0.94117272]
[1742268878545,0.12261416,83040.0,83039.0,0.66945272]
[1742268878749,0.00218066,83040.0,83039.0,0.66945272]
[1742268879245,0.00218066,83040.0,83039.0,0.25785272]
[1742268879446,0.04428066,83040.0,83039.0,0.25785272]
[1742268879748,0.04428066,83040.0,83039.0,0.258023]
[1742268879954,0.04528066,83040.0,83039.0,0.258023]
[1742268880449,0.04528066,83040.0,83039.0,0.301423]
[1742268880647,0.04428066,83040.0,83039.0,0.301423]
[1742268880842,0.04628066,83040.0,83039.0,0.301423]
[1742268881039,0.04628066,83040.0,83039.0,0.571423]
[1742268881341,0.04528066,83040.0,83039.0,0.571423]
[1742268881546,0.04428066,83040.0,83039.0,0.571423]
[1742268883250,0.04428066,83040.0,83039.0,0.57135194]
[1742268883554,0.04428066,83040.0,83039.0,0.57135182]
[1742268884148,0.04428066,83040.0,83039.0,0.5573549]
[1742268884544,0.04428066,83040.0,83039.0,0.57135866]
[1742268884756,0.04428066,83040.0,83039.0,0.57135879]
[1742268885153,0.04428066,83040.0,83039.0,0.2873549]
[1742268885349,0.16471416,83040.0,83039.0,0.2873549]
[1742268885548,0.04428066,83040.0,83039.0,0.2873549]
[1742268885949,0.04428066,83040.0,83039.0,0.2867549]
[1742268886455,0.04428066,83040.0,83039.0,0.30076785]
[1742268886650,0.04428066,83040.0,83039.0,0.57076785]
[1742268887556,0.04428066,83040.0,83039.0,0.57085127]
[1742268889862,0.04428066,83040.0,83039.0,0.57086633]
[1742268890159,0.00218066,83040.0,83039.0,0.57086633]
[1742268892565,0.00118066,83040.0,83039.0,0.57086633]
[1742268892863,0.00218066,83040.0,83039.0,0.57086633]
[1742268893366,0.00218066,83040.0,83039.0,0.571033]
[1742268893766,0.00218066,83040.0,83039.0,0.931833]
[1742268893962,0.00218066,83040.0,83039.0,0.581033]
[1742268894268,0.00218066,83040.0,83039.0,0.941833]
[1742268894665,0.00218066,83040.0,83039.0,0.931833]
[1742268895171,0.00218066,83040.0,83039.0,0.941833]
[1742268896066,0.00218066,83040.0,83039.0,0.983533]
[1742268896574,0.00218066,83040.0,83039.0,0.973533]
[1742268896864,0.00218066,83040.0,83039.0,1.203533]
[1742268897170,6e-08,83040.0,83039.0,1.213533]
[1742268899263,6e-08,83040.0,83039.0,1.21348986]
[1742268900859,6e-08,83040.0,83039.0,1.22348986]
[1742268901166,6e-08,83040.0,83039.0,1.21348986]
[1742268902266,6e-08,83040.0,83039.0,1.22348986]
[1742268902467,6e-08,83040.0,83039.0,1.2234376]
[1742268903265,6e-08,83040.0,83039.0,1.2134376]
[1742268903464,6e-08,83040.0,83039.0,1.4734376]
[1742268903870,0.17709683,83063.0,83062.0,0.1204016]
[1742268904176,0.17709683,83063.0,83062.0,0.5122816]
[1742268904770,0.17709683,83063.0,83062.0,0.5286416]
[1742268905168,0.18309683,83063.0,83062.0,0.5709416]
[1742268905566,0.34869693,83063.0,83062.0,0.1367616]
[1742268905769,0.34869693,83063.0,83062.0,0.12188]
[1742268906076,0.35469693,83063.0,83062.0,0.2422816]
[1742268906771,0.1204117,83055.0,83054.0,0.12059386]
[1742268906970,0.4812117,83055.0,83054.0,0.00018066]
[1742268907280,0.1204204,83050.0,83049.0,0.1204196]
[1742268907577,0.3608,83055.0,83053.0,0.1204146]
[1742268907578,0.1651138,83054.0,83053.0,0.1204146]
[1742268907769,0.0889,83054.0,83053.0,0.1204146]
[1742268908563,0.0889,83054.0,83053.0,0.1650146]
[1742268908767,0.0939,83054.0,83053.0,0.1650146]
[1742268909770,0.0939,83054.0,83053.0,0.4050146]
[1742268910369,0.1374,83054.0,83053.0,0.4050146]
[1742268910564,0.1414,83054.0,83053.0,0.4050146]
[1742268912967,0.2618132,83054.0,83053.0,0.3604146]
[1742268913364,0.2618132,83054.0,83053.0,0.24]
[1742268913569,0.2618132,83054.0,83053.0,0.12208]
[1742268913967,0.2618132,83054.0,83053.0,0.2424946]
[1742268914275,0.1414,83054.0,83053.0,0.5224946]
[1742268914472,0.2618132,83054.0,83053.0,0.6104946]
[1742268914973,0.0979,83054.0,83053.0,0.6104946]
[1742268915173,0.0537,83054.0,83053.0,0.62449665]
[1742268915374,0.0978,83054.0,83053.0,0.62449665]
[1742268915772,0.2182132,83054.0,83053.0,0.5653946]
[1742268915969,0.2182132,83054.0,83053.0,0.2424946]
[1742268918265,0.0978,83054.0,83053.0,0.2424946]
[1742268918475,0.0978,83054.0,83053.0,0.2424146]
[1742268918672,0.2182132,83054.0,83053.0,0.2424146]
[1742268918974,0.2182132,83054.0,83053.0,0.2846146]
[1742268919377,0.0978,83054.0,83053.0,0.29882382]
[1742268919584,0.2182132,83054.0,83053.0,0.29882382]
[1742268920680,0.2182132,83054.0,83053.0,0.25662382]
[1742268920881,0.2182132,83054.0,83053.0,0.2424146]
[1742268921072,0.2182132,83054.0,83053.0,0.2524146]
[1742268921478,0.2182132,83054.0,83053.0,0.26663446]
[1742268921479,0.0978,83054.0,83053.0,0.26663446]
[1742268922278,0.0978,83054.0,83053.0,0.35033446]
[1742268925067,0.2182132,83054.0,83053.0,0.30883446]
[1742268925270,0.2182132,83054.0,83053.0,0.1726146]
[1742268925483,0.2182132,83054.0,83053.0,0.1626146]
[1742268927276,0.0978,83054.0,83053.0,0.1626146]
[1742268927476,0.0537,83054.0,83053.0,0.4026146]
[1742268927780,0.0537,83054.0,83053.0,0.41684588]
[1742268928081,0.009,83054.0,83053.0,0.41684588]
[1742268930775,1e-07,83054.0,83053.0,1.03764588]
[1742268930980,1e-07,83054.0,83053.0,1.07844588]
[1742268932280,1e-07,83054.0,83053.0,1.0642146]
[1742268933488,1e-07,83054.0,83053.0,1.07846281]
[1742268934282,1e-07,83054.0,83053.0,1.07848439]
[1742268941978,1e-07,83054.0,83053.0,1.0642146]
[1742268942182,1e-07,83054.0,83053.0,1.07858696]
[1742268944295,0.0428,83065.0,83064.0,0.1203987]
[1742268944493,0.25570042,83072.0,83071.0,0.1203885]
[1742268944690,0.17709683,83079.0,83073.0,0.1203856]
[1742268944691,0.13045986,83074.0,83073.0,0.1203856]
[1742268944899,0.13045986,83074.0,83073.0,0.40475796]
[1742268945089,0.13045986,83074.0,83073.0,0.47475796]
[1742268945285,6e-08,83074.0,83073.0,0.87715796]
[1742268946997,6e-08,83074.0,83073.0,0.85715796]
[1742268947182,6e-08,83074.0,83073.0,0.89825796]
[1742268947793,6e-08,83074.0,83073.0,0.89795319]
[1742268948002,6e-08,83074.0,83073.0,1.26875319]
[1742268950793,2e-08,83082.0,83081.0,0.120374]
[1742268950993,0.24852872,83110.0,83085.0,0.0601838]
[1742268951297,0.0419,83098.0,83092.0,0.4811581]
[1742268951500,0.04479553,83093.0,83092.0,1.0428781]
[1742268951697,0.14479553,83100.0,83099.0,0.120348]
[1742268952002,0.14479553,83100.0,83099.0,0.872828]
[1742268952200,0.14479553,83100.0,83099.0,0.88978973]
[1742268952394,0.14479553,83100.0,83099.0,0.89894755]
[1742268952593,0.03386183,83100.0,83099.0,1.24264755]
[1742268952796,0.03386183,83100.0,83099.0,1.25685525]
[1742268953004,0.03386183,83100.0,83099.0,0.99685525]
[1742268953501,0.03386183,83100.0,83099.0,0.98264755]
[1742268953707,0.03386183,83100.0,83099.0,1.21264755]
[1742268953900,0.03386183,83100.0,83099.0,0.98264755]
[1742268954105,0.30035644,83116.0,83115.0,0.1203248]
[1742268954309,0.29903644,83116.0,83115.0,0.5118848]
[1742268954810,0.41935984,83116.0,83115.0,0.5118848]
[1742268954999,0.41935984,83116.0,83115.0,0.39156]
[1742268955708,0.41935984,83116.0,83115.0,0.5118848]
[1742268956511,0.29903644,83116.0,83115.0,0.5118848]
[1742268957308,0.33693644,83116.0,83115.0,0.5118848]
[1742268957798,0.45725984,83116.0,83115.0,0.5118848]
[1742268959096,0.33693644,83116.0,83115.0,0.5118848]
[1742268959499,0.52935984,83116.0,83115.0,0.5118848]
[1742268959703,0.40903644,83116.0,83115.0,0.5118848]
[1742268960099,0.52935984,83116.0,83115.0,0.5118848]
[1742268961107,0.2303234,83116.0,83115.0,0.39156]
[1742268961303,0.2303234,83116.0,83115.0,0.5118848]
[1742268962405,0.2303234,83116.0,83115.0,0.39156]
[1742268962909,0.2303234,83116.0,83115.0,0.27]
[1742268963103,0.1203436,83102.0,83101.0,0.12172]
[1742268963417,0.1805122,83104.0,83103.0,0.1203422]
[1742268964107,0.060171,83104.0,83103.0,0.1203422]
[1742268964903,0.096071,83104.0,83103.0,0.1203422]
[1742268965104,0.131871,83104.0,83103.0,0.1203422]
[1742268966403,0.0359,83104.0,83103.0,0.1203422]
[1742268966601,0.3608,83109.0,83108.0,0.1203349]
[1742268966804,0.0729,83117.0,83116.0,0.1203234]
[1742268967011,0.0729,83117.0,83116.0,0.4921234]
[1742268967610,0.0729,83117.0,83116.0,0.5663234]
[1742268967813,0.0358,83117.0,83116.0,0.5663234]
[1742268968120,0.1203116,83127.0,83126.0,0.1804594]
[1742268968509,0.1804559,83132.0,83131.0,0.1202987]
[1742268968706,0.0601513,83132.0,83131.0,0.1202987]
[1742268969107,0.0601513,83132.0,83131.0,0.1571987]
[1742268969616,0.0601513,83132.0,83131.0,0.1572016]
[1742268970213,0.0601513,83132.0,83131.0,0.0369]
[1742268971212,0.1203118,83124.0,83109.0,0.0601663]
[1742268971513,0.1203118,83124.0,83123.0,0.12194043]
[1742268971514,0.4811118,83124.0,83123.0,0.12194043]
[1742268971714,0.6311118,83124.0,83123.0,0.00018043]
[1742268971909,0.4811118,83124.0,83123.0,0.00018043]
[1742268972708,0.1203349,83108.0,83107.0,0.122]
[1742268972913,0.1203349,83108.0,83107.0,0.2810364]
[1742268973218,0.0950667,83110.0,83109.0,0.1203335]
[1742268974919,0.0950667,83110.0,83109.0,0.1947335]
[1742268975117,0.0349,83110.0,83109.0,0.1947335]
[1742268975419,0.180493,83115.0,83114.0,0.1203234]
[1742268976220,0.0601635,83115.0,83114.0,0.1203234]
[1742268976407,0.0601635,83115.0,83114.0,0.2425634]
[1742268976809,0.0601635,83115.0,83114.0,0.2778634]
[1742268977421,0.0379,83116.0,83115.0,0.1203248]
[1742268977618,0.0379,83117.0,83116.0,0.1203234]
[1742268977917,0.00018006,83118.0,83117.0,0.1203219]
[1742268978125,0.00018006,83118.0,83117.0,0.4077219]
[1742268978318,0.00018006,83118.0,83117.0,0.4430219]
[1742268978707,0.12050056,83118.0,83117.0,0.4430219]
[1742268980120,0.12050056,83118.0,83117.0,0.45717404]
[1742268980317,0.12050056,83118.0,83117.0,0.45718]
[1742268980519,0.12050056,83118.0,83117.0,0.1930219]
[1742268981614,0.12050056,83118.0,83117.0,0.20720181]
[1742268983211,0.12050056,83118.0,83117.0,0.1930219]
[1742268986520,0.00018006,83118.0,83117.0,0.4530219]
[1742268987233,0.12050056,83118.0,83117.0,0.4530219]
[1742268987631,0.00018006,83118.0,83117.0,0.4530219]
[1742268989225,0.12050056,83118.0,83117.0,0.4530219]
[1742268989833,0.00018006,83118.0,83117.0,0.4530219]
[1742268992735,0.12050056,83118.0,83117.0,0.4530219]
[1742268992937,0.00018006,83118.0,83117.0,0.4530219]
[1742268994239,0.00018006,83118.0,83117.0,0.46674637]
[1742268995136,0.00018006,83118.0,83117.0,0.48143467]
[1742268996539,0.12050056,83118.0,83117.0,0.48143467]
[1742268996734,0.15460056,83118.0,83117.0,0.48150374]
[1742268996936,0.00018006,83118.0,83117.0,0.48150374]
[1742268997937,0.12050056,83118.0,83117.0,0.48150374]
[1742268998534,0.00018006,83118.0,83117.0,0.48150374]
[1742268998934,0.12050056,83118.0,83117.0,0.48150374]
[1742269000632,0.00018006,83118.0,83117.0,0.48150374]
[1742269001039,0.12050056,83118.0,83117.0,0.48150374]
[1742269001746,0.00018006,83118.0,83117.0,0.48150374]